fUSD/lending_fUSD_20250319
["ID","MTS","AMOUNT","RATE_DAILY","PERIOD"]
[356412059,1742419832012,-1470.0270777,0.00025955,2]
[356412060,1742419832026,-274.58199992,0.00025955,2]
[356412061,1742419832037,-650.47800008,0.00025955,2]
[356412062,1742419832048,-946.24,0.00025955,2]
[356412063,1742419832061,-525.19023838,0.00025955,2]
[356412064,1742419832072,-768.52482663,0.00025955,2]
[356412065,1742419832087,-823.89692,0.00025955,2]
[356412066,1742419832099,-9030.99350267,0.00025955,2]
[356412067,1742419832111,-490.94633377,0.00025955,2]
[356412236,1742419837714,-500.0,0.00025954,2]
[356412238,1742419837724,-316.41488774,0.00025954,2]
[356412239,1742419837734,-500.0,0.00025954,2]
[356412240,1742419837743,-14.14076226,0.00025954,2]
[356412242,1742419837755,-485.85923774,0.00025954,2]
[356412244,1742419837765,-304.51831435,0.00025954,2]
[356412245,1742419837774,-9929.02745624,0.00025955,2]
[356412246,1742419837789,-12075.92852,0.00025955,2]
[356412247,1742419837800,-41358.53300018,0.00025955,2]
[356412248,1742419837811,-2296.01954149,0.00025955,2]
[356412249,1742419837832,-987.54270914,0.00025955,2]
[356412250,1742419837843,-837.40192961,0.00025955,2]
[356412251,1742419837856,-3451.34324685,0.00025955,2]
[356412252,1742419837868,-346.26,0.00025955,2]
[356412253,1742419837879,-1017.26728066,0.00025955,2]
[356412254,1742419837891,-360.06,0.00025955,2]
[356412255,1742419837902,-3629.02413031,0.00025955,2]
[356412256,1742419837923,-385.36424049,0.00025955,2]
[356412257,1742419837934,-865.69,0.00025955,2]
[356412258,1742419837945,-527.74702981,0.00025955,2]
[356412259,1742419837956,-364.04259866,0.00025955,2]
[356412260,1742419837967,-391.19999955,0.00025955,2]
[356412261,1742419837979,-5814.50391773,0.00025955,2]
[356412262,1742419837988,-7009.1532413,0.0002596,2]
[356412263,1742419837998,-248.09,0.00025972,2]
[356412264,1742419838008,-277.25284097,0.00026847,14]
[356412265,1742419838020,-218.83815903,0.00026847,14]
[356412266,1742419838030,-3974.39120916,0.00026848,2]
[356412267,1742419838050,-2019.23509384,0.00026848,2]
[356412269,1742419838059,-385.64,0.00026849,2]
[356412271,1742419838069,-242.97011042,0.000269,4]
[356412272,1742419838078,-2677.98,0.00027693,2]
[356412273,1742419838088,-358.78,0.00027693,2]
[356412274,1742419838097,-242.97011017,0.00027693,4]
[356412275,1742419838106,-181.79,0.00027793,120]
[356412276,1742419838116,-250.0,0.00027986,2]
[356412277,1742419838125,-254.361575,0.00027992,2]
[356412278,1742419838134,-545.46169835,0.00027992,2]
[356412279,1742419838143,-406.58483113,0.00027992,2]
[356412280,1742419838152,-1000.0,0.00027993,2]
[356412281,1742419838162,-166.58,0.00028007,30]
[356412282,1742419838171,-248.09,0.00028235,2]
[356412283,1742419838180,-242.97011017,0.00028486,5]
[356412284,1742419838190,-323.4140105,0.00028583,4]
[356412285,1742419838199,-150.0,0.00028686,2]
[356412286,1742419838209,-21851.1205448,0.00028689,3]
[356412287,1742419838219,-627.78,0.00028689,2]
[356412288,1742419838229,-535.08,0.00028689,2]
[356412289,1742419838239,-500.0,0.00028689,2]
[356412290,1742419838249,-500.0,0.00028689,2]
[356412291,1742419838259,-500.0,0.00028689,2]
[356412292,1742419838268,-500.0,0.00028689,2]
[356412293,1742419838278,-500.0,0.00028689,2]
[356412294,1742419838287,-500.0,0.00028689,2]
[356412295,1742419838297,-577.82,0.00028689,2]
[356412296,1742419838307,-500.0,0.00028689,2]
[356412297,1742419838316,-500.0,0.00028689,2]
[356412298,1742419838325,-32776.6808172,0.0002869,3]
[356412299,1742419838335,-586.19,0.00028698,2]
[356412300,1742419838344,-1279.78,0.00028698,2]
[356412301,1742419838353,-500.0,0.00028698,2]
[356412302,1742419838363,-4699.978253,0.00028698,2]
[356412303,1742419838372,-287.75311,0.00028698,2]
[356412304,1742419838382,-151.886926,0.00028698,2]
[356412305,1742419838391,-1303.56,0.00028698,2]
[356412306,1742419838400,-1024.29,0.00028698,2]
[356412307,1742419838410,-5732.136811,0.00028698,2]
[356412308,1742419838420,-908.51,0.00028698,2]
[356412309,1742419838429,-941.16,0.00028698,2]
[356412310,1742419838439,-1211.44,0.00028698,2]
[356412311,1742419838449,-522.69,0.00028698,2]
[356412312,1742419838459,-1175.12,0.00028698,2]
[356412313,1742419838468,-904.9,0.00028698,2]
[356412314,1742419838479,-1090.88,0.00028698,2]
[356412315,1742419838489,-554.63,0.00028698,2]
[356412316,1742419838499,-500.0,0.00028698,2]
[356412317,1742419838508,-1769.76,0.00028698,2]
[356412318,1742419838530,-1372.97,0.00028698,2]
[356412319,1742419838540,-500.0,0.00028698,2]
[356412320,1742419838550,-522.71351361,0.00028698,2]
[356412321,1742419838560,-1507.88,0.00028698,2]
[356412322,1742419838571,-820.6,0.00028698,2]
[356412323,1742419838581,-862.25,0.00028698,2]
[356412324,1742419838591,-1193.01,0.00028698,2]
[356412325,1742419838601,-598.37,0.00028698,2]
[356412326,1742419838611,-500.0,0.00028698,2]
[356412327,1742419838621,-500.0,0.00028698,2]
[356412328,1742419838631,-714.71,0.00028698,2]
[356412329,1742419838641,-500.0,0.00028698,2]
[356412330,1742419838651,-693.94,0.00028698,2]
[356412331,1742419838661,-607.49,0.00028698,2]
[356412332,1742419838671,-531.58,0.00028698,2]
[356412333,1742419838681,-500.0,0.00028698,2]
[356412334,1742419838691,-1153.67,0.00028698,2]
[356412335,1742419838701,-151.0,0.00028698,7]
[356412336,1742419838710,-500.0,0.00028698,2]
[356412337,1742419838720,-1343.58,0.00028698,2]
[356412338,1742419838729,-702.54,0.00028698,2]
[356412339,1742419838739,-549.59,0.00028698,2]
[356412340,1742419838749,-599.5,0.00028698,2]
[356412341,1742419838758,-1018.67,0.00028698,2]
[356412342,1742419838767,-811.97,0.00028698,2]
[356412343,1742419838777,-500.0,0.00028698,2]
[356412345,1742419838791,-500.0,0.00028698,2]
[356412347,1742419838800,-500.0,0.00028698,2]
[356412349,1742419838810,-609.59,0.00028698,2]
[356412351,1742419838819,-1668.74,0.00028698,2]
[356412353,1742419838829,-151.0,0.00028698,7]
[356412354,1742419838839,-500.0,0.00028698,2]
[356412357,1742419838848,-500.0,0.00028698,2]
[356412359,1742419838859,-821.02,0.00028698,2]
[356412361,1742419838868,-1491.86,0.00028698,2]
[356412363,1742419838878,-1207.89,0.00028698,2]
[356412365,1742419838887,-500.0,0.00028699,2]
[356412367,1742419838897,-500.0,0.00028699,2]
[356412369,1742419838906,-500.0,0.00028699,2]
[356412371,1742419838916,-500.0,0.00028699,2]
[356412373,1742419838925,-500.0,0.00028699,2]
[356412375,1742419838935,-501.63559369,0.00028699,2]
[356412377,1742419838944,-285.49302726,0.00028699,2]
[356412379,1742419838953,-500.54629721,0.00028699,2]
[356412381,1742419838962,-500.0,0.00028699,2]
[356412383,1742419838971,-1113.39,0.00028699,2]
[356412385,1742419838980,-571.41,0.00028699,2]
[356412387,1742419838990,-758.94,0.00028699,2]
[356412389,1742419838999,-500.0,0.00028699,2]
[356412391,1742419839008,-500.0,0.00028699,2]
[356412393,1742419839018,-500.0,0.00028699,2]
[356412395,1742419839028,-500.0,0.00028699,2]
[356412397,1742419839037,-500.0,0.00028699,2]
[356412398,1742419839047,-500.0,0.00028699,2]
[356412400,1742419839056,-500.0,0.00028699,2]
[356412402,1742419839066,-500.0,0.00028699,2]
[356412404,1742419839075,-500.0,0.00028699,2]
[356412406,1742419839084,-500.0,0.00028699,2]
[356412408,1742419839093,-500.0,0.00028699,2]
[356412409,1742419839103,-500.0,0.00028699,2]
[356412411,1742419839112,-500.0,0.00028699,2]
[356412413,1742419839122,-765.9,0.00028699,2]
[356412415,1742419839131,-500.0,0.00028699,2]
[356412416,1742419839140,-500.0,0.00028699,2]
[356412417,1742419839151,-500.0,0.00028699,2]
[356412418,1742419839161,-2460.24,0.00028699,2]
[356412419,1742419839171,-500.0,0.00028699,2]
[356412420,1742419839180,-500.0,0.00028699,2]
[356412421,1742419839190,-500.0,0.00028699,2]
[356412422,1742419839199,-500.0,0.00028699,2]
[356412423,1742419839208,-500.0,0.00028699,2]
[356412424,1742419839217,-500.0,0.00028699,2]
[356412425,1742419839227,-500.0,0.00028699,2]
[356412426,1742419839236,-500.0,0.00028699,2]
[356412427,1742419839245,-500.0,0.00028699,2]
[356412428,1742419839255,-500.0,0.00028699,2]
[356412429,1742419839265,-500.0,0.00028699,2]
[356412430,1742419839274,-636.89,0.00028699,2]
[356412431,1742419839284,-500.0,0.00028699,2]
[356412432,1742419839294,-500.0,0.00028699,2]
[356412433,1742419839304,-500.0,0.00028699,2]
[356412434,1742419839314,-1522.18,0.00028699,2]
[356412435,1742419839323,-500.0,0.00028699,2]
[356412436,1742419839333,-500.0,0.00028699,2]
[356412437,1742419839343,-613.85,0.00028699,2]
[356412438,1742419839352,-500.0,0.00028699,2]
[356412439,1742419839362,-563.27,0.00028699,2]
[356412440,1742419839372,-522.20008103,0.00028699,2]
[356412441,1742419839381,-500.0,0.00028699,2]
[356412442,1742419839391,-500.0,0.00028699,2]
[356412443,1742419839401,-500.0,0.00028699,2]
[356412444,1742419839411,-500.0,0.00028699,2]
[356412445,1742419839420,-500.0,0.00028699,2]
[356412446,1742419839431,-556.61864179,0.00028699,2]
[356412447,1742419839440,-923.23,0.00028699,2]
[356412448,1742419839450,-183.29699362,0.00028699,2]
[356412449,1742419839460,-1459.22,0.00028699,2]
[356412450,1742419839470,-539.84,0.00028699,2]
[356412451,1742419839480,-483.79358629,0.00028699,2]
[356412452,1742419839491,-500.0,0.00028699,2]
[356412453,1742419839501,-305.25980484,0.00028699,2]
[356412454,1742419839511,-551.45,0.00028699,2]
[356412455,1742419839521,-692.16,0.00028699,2]
[356412456,1742419839531,-434.68546347,0.00028699,2]
[356412457,1742419839540,-500.0,0.00028699,2]
[356412458,1742419839549,-500.0,0.00028699,2]
[356412459,1742419839559,-500.0,0.00028699,2]
[356412460,1742419839569,-511.51689646,0.00028699,2]
[356412461,1742419839579,-500.0,0.00028699,2]
[356412462,1742419839588,-500.0,0.00028699,2]
[356412463,1742419839598,-500.0,0.00028699,2]
[356412464,1742419839608,-151.0,0.00028699,7]
[356412465,1742419839618,-500.0,0.00028699,2]
[356412466,1742419839628,-500.0,0.00028699,2]
[356412467,1742419839638,-500.0,0.00028699,2]
[356412468,1742419839647,-914.95,0.00028699,2]
[356412469,1742419839657,-500.0,0.00028699,2]
[356412470,1742419839667,-709.03,0.00028699,2]
[356412471,1742419839677,-500.0,0.00028699,2]
[356412472,1742419839687,-155.12801053,0.00028699,2]
[356412473,1742419839698,-500.0,0.00028699,2]
[356412474,1742419839709,-1165.14,0.00028699,2]
[356412475,1742419839719,-500.0,0.00028699,2]
[356412476,1742419839729,-500.0,0.00028699,2]
[356412477,1742419839738,-946.0,0.00028699,2]
[356412478,1742419839748,-500.0,0.00028699,2]
[356412479,1742419839758,-1227.53,0.00028699,2]
[356412480,1742419839767,-151.0,0.00028699,7]
[356412481,1742419839777,-500.0,0.00028699,2]
[356412482,1742419839791,-1093.27,0.00028699,2]
[356412483,1742419839801,-151.0,0.00028699,7]
[356412484,1742419839812,-1672.31,0.00028699,2]
[356412485,1742419839823,-771.63,0.00028699,2]
[356412486,1742419839832,-151.0,0.00028699,7]
[356412487,1742419839842,-151.0,0.00028699,7]
[356412488,1742419839851,-727.55,0.00028699,2]
[356412489,1742419839861,-500.0,0.00028699,2]
[356412491,1742419839871,-4621.16,0.00028699,2]
[356412492,1742419839881,-503.73,0.00028699,2]
[356412493,1742419839892,-989.23,0.00028699,2]
[356412494,1742419839902,-1528.04,0.00028699,2]
[356412495,1742419839912,-1543.7,0.00028699,2]
[356412496,1742419839922,-500.0,0.00028699,2]
[356412497,1742419839932,-500.0,0.00028699,2]
[356412498,1742419839942,-893.4,0.00028699,2]
[356412499,1742419839951,-1094.34,0.00028699,2]
[356412500,1742419839961,-768.13,0.00028699,2]
[356412501,1742419839970,-724.64,0.00028699,2]
[356412502,1742419839981,-500.0,0.00028699,2]
[356412504,1742419839992,-670.2,0.00028699,2]
[356412506,1742419840002,-506.47,0.00028699,2]
[356412507,1742419840012,-151.0,0.00028699,7]
[356412508,1742419840022,-647.94927356,0.00028699,2]
[356412509,1742419840033,-500.0,0.00028699,2]
[356412510,1742419840043,-1086.99,0.00028699,2]
[356412511,1742419840056,-500.0,0.00028699,2]
[356412512,1742419840066,-1000.0,0.00028699,2]
[356412513,1742419840075,-946.84,0.00028699,2]
[356412514,1742419840085,-152.384721,0.00028699,7]
[356412515,1742419840095,-151.6383,0.00028699,7]
[356412516,1742419840106,-1406.87,0.00028699,2]
[356412517,1742419840117,-151.0,0.00028699,7]
[356412518,1742419840126,-500.0,0.00028699,2]
[356412519,1742419840138,-550.55,0.00028699,2]
[356412520,1742419840148,-640.09,0.00028699,2]
[356412521,1742419840158,-620.13,0.00028699,2]
[356412522,1742419840168,-752.36,0.00028699,2]
[356412523,1742419840178,-574.32,0.00028699,2]
[356412524,1742419840188,-1252.23,0.00028699,2]
[356412525,1742419840197,-1470.52,0.00028699,2]
[356412526,1742419840206,-151.0,0.00028699,7]
[356412527,1742419840216,-929.3,0.00028699,2]
[356412528,1742419840226,-151.0,0.00028699,7]
[356412529,1742419840235,-500.0,0.00028699,2]
[356412530,1742419840245,-975.22,0.00028699,2]
[356412531,1742419840255,-500.0,0.00028699,2]
[356412532,1742419840266,-500.0,0.00028699,2]
[356412533,1742419840276,-500.0,0.00028699,2]
[356412534,1742419840286,-500.0,0.00028699,2]
[356412535,1742419840296,-990.97,0.00028699,2]
[356412536,1742419840306,-500.0,0.00028699,2]
[356412537,1742419840316,-509.46435939,0.00028699,2]
[356412538,1742419840326,-151.0,0.00028699,7]
[356412539,1742419840336,-151.0,0.00028699,7]
[356412540,1742419840346,-500.0,0.00028699,2]
[356412541,1742419840355,-500.0,0.00028699,2]
[356412542,1742419840365,-964.88,0.00028699,2]
[356412543,1742419840375,-605.18,0.00028699,2]
[356412551,1742419840631,-500.0,0.00028699,2]
[356412552,1742419840643,-151.0,0.00028699,7]
[356412553,1742419840653,-500.0,0.00028699,2]
[356412554,1742419840663,-670.48,0.00028699,2]
[356412555,1742419840673,-660.21,0.00028699,2]
[356412556,1742419840685,-840.27,0.00028699,2]
[356412557,1742419840695,-610.9,0.00028699,2]
[356412558,1742419840704,-507.6141689,0.00028699,2]
[356412559,1742419840714,-825.01,0.00028699,2]
[356412560,1742419840725,-500.0,0.00028699,2]
[356412561,1742419840742,-1088.85,0.00028699,2]
[356412562,1742419840752,-500.0,0.00028699,2]
[356412563,1742419840762,-500.0,0.00028699,2]
[356412564,1742419840771,-813.4,0.00028699,2]
[356412565,1742419840787,-500.0,0.00028699,2]
[356412566,1742419840799,-500.0,0.00028699,2]
[356412567,1742419840809,-317.42710957,0.00028699,2]
[356412568,1742419840819,-151.0,0.00028699,7]
[356412569,1742419840830,-151.0,0.00028699,7]
[356412570,1742419840839,-151.0,0.00028699,7]
[356412571,1742419840848,-151.0,0.00028699,7]
[356412572,1742419840860,-2337.68,0.00028699,2]
[356412573,1742419840870,-533.51,0.00028699,2]
[356412574,1742419840879,-1812.53,0.00028699,2]
[356412575,1742419840888,-320.08257462,0.00028699,2]
[356412576,1742419840898,-1679.75,0.00028699,2]
[356412577,1742419840908,-500.0,0.00028699,2]
[356412578,1742419840917,-1829.69,0.00028699,2]
[356412579,1742419840927,-1645.7,0.00028699,2]
[356412580,1742419840936,-500.0,0.00028699,2]
[356412581,1742419840946,-500.0,0.00028699,2]
[356412582,1742419840955,-500.0,0.00028699,2]
[356412583,1742419840965,-1074.34,0.00028699,2]
[356412584,1742419840975,-500.0,0.00028699,2]
[356412585,1742419840984,-500.0,0.00028699,2]
[356412586,1742419840994,-1246.07,0.00028699,2]
[356412587,1742419841004,-500.0,0.00028699,2]
[356412588,1742419841013,-500.0,0.00028699,2]
[356412589,1742419841023,-500.0,0.00028699,2]
[356412590,1742419841032,-1025.0,0.00028699,2]
[356412591,1742419841042,-59685.4301,0.000287,2]
[356412592,1742419841051,-193.072375,0.000287,7]
[356412593,1742419841060,-151.0,0.000287,7]
[356412594,1742419841070,-1122.01978167,0.000287,2]
[356412595,1742419841079,-164.65303725,0.00028788,2]
[356412596,1742419841088,-651.51105944,0.00028789,12]
[356412597,1742419841098,-194574.32635884,0.00028789,12]
[356412598,1742419841329,-403.85499999,0.00028789,12]
[356412599,1742419841341,-9048.65698353,0.00028789,12]
[356412600,1742419841353,-8091.70221449,0.0002879,3]
[356412607,1742419842914,-500.0,0.00028689,2]
[356412608,1742419842925,-500.0,0.00028699,2]
[356412609,1742419842936,-1532.95,0.00028699,2]
[356412610,1742419842946,-1088.28493034,0.0002879,3]
[356412611,1742419842957,-708.70981762,0.0002879,3]
[356412612,1742419842969,-1036.86330995,0.0002879,3]
[356412613,1742419842978,-6562.2112,0.000288,2]
[356412614,1742419842987,-439.5967,0.000288,2]
[356412615,1742419842997,-3068.3707,0.000288,2]
[356412616,1742419843007,-337.90590105,0.000288,2]
[356412617,1742419843037,-11207.59859895,0.000288,2]
[356412618,1742419843047,-151.0,0.000288,7]
[356412619,1742419843057,-160.29697532,0.00028868,2]
[356412620,1742419843067,-151.0,0.00028868,7]
[356412621,1742419843076,-2500.0,0.00028868,2]
[356412623,1742419843086,-293.53418341,0.00028869,3]
[356412625,1742419843097,-397.66172814,0.00028869,3]
[356412627,1742419843109,-720.79,0.00028869,3]
[356412628,1742419843121,-646.2,0.00028869,3]
[356412630,1742419843141,-1681.85917043,0.00028869,3]
[356412693,1742419843739,-7185.51519042,0.00028869,3]
[356412695,1742419843749,-4273.81001251,0.00028878,3]
[356412698,1742419843760,-763.42564321,0.00028878,3]
[356412700,1742419843772,-341.04,0.00028878,3]
[356412784,1742419845996,-877.7966,0.00027929,2]
[356412785,1742419846009,-122.2034,0.00027929,2]
[356412786,1742419846019,-500.0,0.00028689,2]
[356412787,1742419846029,-519.3966,0.00028698,2]
[356412788,1742419846066,-707.0534,0.00028698,2]
[356412789,1742419846076,-4428.61,0.00028698,2]
[356412791,1742419846085,-856.67,0.00028699,2]
[356412792,1742419846095,-500.0,0.00028699,2]
[356412793,1742419846104,-2136.13250616,0.00028878,3]
[356412802,1742419990982,209.8,0.00021454,2]
[356412813,1742420647571,151.032006,0.00023,120]
[356412814,1742420749359,201.032006,0.00023,120]
[356412816,1742421032003,-151.032006,0.00024498,120]
[356412817,1742421032013,-223.28,0.00025487,2]
[356412818,1742421032023,-151.032006,0.00025498,120]
[356412819,1742421032032,-151.032006,0.00026498,120]
[356412820,1742421032042,-207.55,0.00026849,2]
[356412821,1742421032052,-163.89,0.00027405,2]
[356412822,1742421032062,-1000.0,0.00027455,2]
[356412823,1742421032072,-151.032006,0.00027498,120]
[356412824,1742421032082,-151.75,0.00027613,2]
[356412825,1742421032091,-223.28,0.00027751,2]
[356412826,1742421032102,-151.75,0.00027889,2]
[356412827,1742421032111,-228.99,0.0002789,120]
[356412828,1742421032121,-187.14,0.00027922,2]
[356412829,1742421032131,-250.0,0.00027958,2]
[356412830,1742421032141,-900.0,0.00028,29]
[356412831,1742421032150,-168.6,0.00028002,30]
[356412832,1742421032159,-242.5605079,0.00028118,4]
[356412833,1742421032169,-151.75,0.00028165,2]
[356412834,1742421032179,-151.75,0.00028441,2]
[356412835,1742421032193,-151.032006,0.00028498,120]
[356412836,1742421032203,-1000.0,0.000285,2]
[356412837,1742421032213,-521.9726,0.0002858,42]
[356412838,1742421032223,-300.0,0.00028588,2]
[356412839,1742421032236,-252.0,0.00028589,2]
[356412840,1742421032246,-1362.1540567,0.00028589,2]
[356412841,1742421032258,-504.42,0.00028589,2]
[356412842,1742421032270,-2764.0928433,0.00028589,2]
[356412843,1742421032280,-452.672,0.00028589,2]
[356412844,1742421032289,-2500.0,0.00028589,2]
[356412845,1742421032299,-160.29697532,0.00028598,2]
[356412846,1742421032308,-504.16156244,0.00028673,5]
[356412847,1742421032318,-501.57357659,0.00028673,5]
[356412848,1742421032327,-500.0,0.00028673,2]
[356412849,1742421032337,-150.0,0.00028687,2]
[356412850,1742421032346,-200.50203493,0.00028687,2]
[356412851,1742421032356,-599.429,0.00028688,20]
[356412852,1742421032365,-318.61069991,0.00028688,2]
[356412853,1742421032375,-164.87155714,0.00028688,2]
[356412854,1742421032384,-248.96486349,0.00028688,2]
[356412855,1742421032393,-541.45023981,0.00028688,2]
[356412856,1742421032403,-431.85707482,0.00028688,2]
[356412857,1742421032411,-601.63,0.00028688,2]
[356412858,1742421032420,-512.79,0.00028688,2]
[356412859,1742421032430,-500.0,0.00028688,2]
[356412860,1742421032439,-500.0,0.00028688,2]
[356412861,1742421032449,-500.0,0.00028688,2]
[356412862,1742421032459,-532.64784225,0.00028688,2]
[356412863,1742421032468,-500.0,0.00028688,2]
[356412864,1742421032477,-500.0,0.00028688,2]
[356412865,1742421032487,-500.0,0.00028688,2]
[356412866,1742421032496,-500.0,0.00028688,2]
[356412867,1742421032506,-500.0,0.00028688,2]
[356412868,1742421032515,-500.0,0.00028688,2]
[356412869,1742421032524,-500.0,0.00028688,2]
[356412870,1742421032534,-569.36,0.00028688,2]
[356412871,1742421032543,-500.0,0.00028688,2]
[356412872,1742421032552,-535.67,0.00028688,2]
[356412873,1742421032562,-500.0,0.00028688,2]
[356412874,1742421032571,-580.77,0.00028688,2]
[356412875,1742421032580,-500.0,0.00028688,2]
[356412876,1742421032590,-500.0,0.00028688,2]
[356412877,1742421032599,-500.0,0.00028688,2]
[356412878,1742421032608,-500.0,0.00028688,2]
[356412879,1742421032618,-500.0,0.00028688,2]
[356412880,1742421032627,-500.0,0.00028688,2]
[356412881,1742421032637,-500.0,0.00028688,2]
[356412882,1742421032646,-500.0,0.00028688,2]
[356412883,1742421032655,-500.0,0.00028688,2]
[356412884,1742421032665,-500.0,0.00028688,2]
[356412885,1742421032674,-500.0,0.00028688,2]
[356412886,1742421032683,-500.0,0.00028688,2]
[356412887,1742421032693,-695.86,0.00028688,2]
[356412888,1742421032702,-500.0,0.00028688,2]
[356412889,1742421032712,-500.0,0.00028688,2]
[356412890,1742421032721,-500.0,0.00028688,2]
[356412891,1742421032730,-541.49,0.00028688,2]
[356412892,1742421032740,-500.0,0.00028688,2]
[356412893,1742421032749,-500.0,0.00028688,2]
[356412894,1742421032759,-500.0,0.00028688,2]
[356412895,1742421032768,-593.99050844,0.00028688,2]
[356412896,1742421032777,-1637.9,0.00028688,2]
[356412897,1742421032787,-500.0,0.00028688,2]
[356412898,1742421032797,-500.0,0.00028688,2]
[356412899,1742421032807,-500.0,0.00028688,2]
[356412900,1742421032817,-500.0,0.00028688,2]
[356412901,1742421032828,-500.0,0.00028688,2]
[356412902,1742421032838,-500.0,0.00028688,2]
[356412903,1742421032847,-567.92,0.00028688,2]
[356412904,1742421032857,-500.0,0.00028688,2]
[356412905,1742421032867,-522.82199965,0.00028688,2]
[356412906,1742421032876,-500.0,0.00028688,2]
[356412907,1742421032886,-638.6,0.00028688,2]
[356412908,1742421032895,-815.46,0.00028688,2]
[356412909,1742421032905,-678.17,0.00028688,2]
[356412910,1742421032914,-500.0,0.00028688,2]
[356412911,1742421032924,-634.33,0.00028688,2]
[356412912,1742421032933,-500.0,0.00028688,2]
[356412913,1742421032943,-500.0,0.00028688,2]
[356412914,1742421032952,-500.0,0.00028688,2]
[356412915,1742421032961,-1534.67,0.00028688,2]
[356412916,1742421032970,-508.39,0.00028688,2]
[356412917,1742421032979,-722.67,0.00028688,2]
[356412918,1742421032988,-164.10988633,0.00028688,2]
[356412919,1742421032998,-500.0,0.00028688,2]
[356412920,1742421033007,-768.62,0.00028688,2]
[356412921,1742421033016,-500.0,0.00028688,2]
[356412922,1742421033026,-500.0,0.00028688,2]
[356412923,1742421033035,-901.94,0.00028688,2]
[356412924,1742421033045,-500.0,0.00028688,2]
[356412925,1742421033054,-500.0,0.00028688,2]
[356412926,1742421033064,-500.0,0.00028688,2]
[356412927,1742421033074,-500.0,0.00028688,2]
[356412928,1742421033084,-500.0,0.00028688,2]
[356412929,1742421033093,-500.91,0.00028688,2]
[356412930,1742421033103,-522.71,0.00028688,2]
[356412931,1742421033112,-864.48,0.00028688,2]
[356412932,1742421033121,-500.0,0.00028688,2]
[356412933,1742421033131,-500.0,0.00028688,2]
[356412934,1742421033140,-500.0,0.00028688,2]
[356412935,1742421033150,-500.0,0.00028688,2]
[356412936,1742421033160,-867.19,0.00028688,2]
[356412937,1742421033169,-500.0,0.00028688,2]
[356412938,1742421033179,-1696.02,0.00028688,2]
[356412939,1742421033192,-666.52,0.00028688,2]
[356412940,1742421033202,-2000.0,0.00028688,30]
[356412941,1742421033212,-200.0,0.00028688,2]
[356412942,1742421033221,-500.0,0.00028688,2]
[356412943,1742421033233,-500.0,0.00028688,2]
[356412944,1742421033242,-531.52,0.00028688,2]
[356412945,1742421033252,-500.0,0.00028688,2]
[356412946,1742421033261,-500.0,0.00028688,2]
[356412947,1742421033272,-500.0,0.00028688,2]
[356412948,1742421033282,-500.0,0.00028688,2]
[356412949,1742421033291,-1315.76,0.00028688,2]
[356412950,1742421033300,-500.0,0.00028688,2]
[356412951,1742421033309,-500.0,0.00028688,2]
[356412952,1742421033319,-1073.21,0.00028688,2]
[356412953,1742421033329,-786.41,0.00028688,2]
[356412954,1742421033339,-930.87,0.00028688,2]
[356412955,1742421033350,-500.0,0.00028688,2]